bitfinex-derivatives/quotes_ETHF0:USTF0_20260316
["timestamp","ask_amount","ask_price","bid_price","bid_amount"]
[1773641993787,7.88350381,2268.6,2267.6,10.14757243]
[1773641994386,0.5101786,2269.3,2267.8,8.37969196]
[1773641994387,7.88350381,2268.9,2267.8,8.37969196]
[1773641994586,3.68796312,2269.6,2268.0,8.37969196]
[1773641994884,3.68796312,2269.6,2268.8,8.37969196]
[1773641994885,7.8891865,2269.6,2268.8,8.37969196]
[1773641995092,7.8891865,2269.6,2268.6,19.69985267]
[1773641995290,7.8891865,2269.6,2268.7,7.76585267]
[1773641999986,7.8891865,2269.6,2268.4,7.76585267]
[1773642000989,7.8891865,2269.6,2268.5,19.69185267]
[1773642001191,7.8891865,2269.6,2268.5,7.76585267]
[1773642001790,7.8891865,2269.6,2268.1,7.76585267]
[1773642001990,7.95005131,2269.3,2268.1,7.76585267]
[1773642002489,1.57181828,2269.1,2268.0,11.92]
[1773642002689,7.95005131,2268.7,2267.7,7.76585267]
[1773642002989,7.95005131,2268.7,2267.6,0.00465702]
[1773642003190,7.95005131,2268.4,2267.1,19.57385267]
[1773642003893,1.57181828,2268.2,2267.1,19.57385267]
[1773642004094,7.95005131,2268.1,2267.1,19.57385267]
[1773642004393,7.95005131,2268.1,2267.1,7.77086007]
[1773642004691,7.95005131,2268.1,2267.1,0.0050074]
[1773642006188,7.95005131,2267.9,2267.1,0.0050074]
[1773642006392,7.95573103,2267.9,2267.1,0.0050074]
[1773642007295,7.95573103,2267.9,2266.6,7.76585267]
[1773642007496,7.95005131,2267.7,2266.6,7.76585267]
[1773642007690,7.95005131,2267.7,2266.3,7.76585267]
[1773642008299,7.95005131,2267.7,2266.3,7.77140959]
[1773642008792,0.22612972,2267.9,2266.3,0.00555692]
[1773642008793,7.95005131,2267.4,2266.3,0.00555692]
[1773642009593,9.52597493,2267.4,2266.3,0.00555692]
[1773642009798,11.495,2267.6,2266.3,0.00555692]
[1773642009799,7.95005131,2267.2,2266.3,0.00555692]
[1773642009994,7.95005131,2267.2,2266.3,7.77140959]
[1773642010597,7.95005131,2267.2,2266.3,0.00555692]
[1773642014000,7.95005131,2267.2,2266.3,7.77140959]
[1773642015896,7.95005131,2267.2,2266.3,0.00425692]
[1773642016101,7.95005131,2267.2,2266.3,7.77010959]
[1773642017708,7.95005131,2267.2,2266.3,0.00425692]
[1773642019005,7.95005131,2267.2,2265.9,7.76585267]
[1773642020109,7.95005131,2267.2,2265.9,7.77038176]
[1773642022110,7.95005131,2267.2,2266.1,7.58112775]
[1773642025107,8.04127794,2267.8,2266.3,7.58112775]
[1773642025312,8.25818453,2267.8,2266.3,7.58112775]
[1773642025814,8.25818453,2267.8,2266.4,5.02180598]
[1773642026110,8.25818453,2267.8,2266.5,7.58112775]
[1773642026812,8.04127794,2267.8,2266.5,7.58112775]
[1773642027407,8.04127794,2267.8,2266.7,7.58112775]
[1773642029311,8.04127794,2267.8,2266.8,7.58112775]
[1773642030004,0.00567972,2267.9,2266.8,7.58112775]
[1773642030204,8.04695766,2267.9,2266.8,7.58112775]
[1773642034210,8.04695766,2267.9,2267.0,7.58112775]
[1773642044013,8.04695766,2267.9,2266.8,7.58112775]
[1773642053614,8.04695766,2267.9,2266.8,19.43812775]
[1773642053820,8.04695766,2267.9,2266.9,7.36638705]
[1773642057217,0.00567972,2267.9,2267.0,7.41966994]
[1773642057422,7.65845833,2267.9,2267.0,7.41966994]
[1773642064830,7.65845833,2267.9,2267.2,7.41966994]
[1773642066136,3.68228043,2268.6,2267.7,8.99461023]
[1773642066333,7.65277861,2268.4,2267.7,8.99461023]
[1773642066527,7.65277861,2268.4,2267.7,7.41966994]
[1773642066927,0.22037,2268.8,2267.7,7.41966994]
[1773642066928,7.65277861,2268.7,2267.7,8.99461023]
[1773642067128,7.65724089,2268.7,2267.7,7.42335556]
[1773642068236,7.65724089,2268.7,2267.9,7.41966994]
[1773642068632,7.6383324,2268.8,2268.2,7.41966994]
[1773642068833,7.65277861,2269.2,2268.2,7.41966994]
[1773642069438,7.65277861,2269.2,2268.5,7.41966994]
[1773642069636,7.65798881,2269.2,2268.5,7.41966994]
[1773642072536,7.65798881,2269.2,2267.8,0.22046]
[1773642072537,7.65798881,2269.2,2268.1,7.41966994]
[1773642082843,7.65798881,2269.2,2268.1,8.99461023]
[1773642085652,7.65798881,2269.2,2268.3,8.32656089]
[1773642086849,7.65798881,2269.2,2268.5,8.32656089]
[1773642087049,0.0052102,2269.2,2268.7,8.32656089]
[1773642087255,8.20993669,2269.5,2268.7,9.90150118]
[1773642087449,8.20993669,2269.5,2268.7,8.32656089]
[1773642088155,8.21514594,2269.5,2268.7,8.32656089]
[1773642089154,0.00520925,2269.5,2268.7,8.32656089]
[1773642091862,8.20993669,2269.4,2268.7,8.32656089]
[1773642097863,8.20993669,2269.4,2268.4,8.32656089]
[1773642100767,8.20993669,2269.2,2268.4,8.32656089]
[1773642101666,8.20993669,2269.2,2268.2,8.32656089]
[1773642101866,5.15563717,2269.1,2268.0,8.32656089]
[1773642102068,8.20993669,2269.0,2268.0,8.32656089]
[1773642110773,8.20993669,2268.8,2268.0,8.32656089]
[1773642111575,8.20993669,2268.6,2268.0,8.32656089]
[1773642113679,8.20993669,2268.6,2267.8,11.883]
[1773642113680,7.46163429,2268.9,2268.2,7.89212653]
[1773642117274,1.18956431,2269.1,2267.8,11.883]
[1773642117275,7.67741403,2269.1,2268.6,7.75888462]
[1773642117483,7.67741403,2269.4,2268.7,8.73071944]
[1773642118081,7.67741403,2269.4,2268.7,7.75888462]
[1773642119275,7.89698748,2269.4,2268.7,7.75888462]
[1773642120374,7.67741403,2268.8,2268.1,7.75888462]
[1773642121475,7.67741403,2269.3,2268.1,7.75888462]
[1773642121675,5.15815209,2269.2,2268.1,7.75888462]
[1773642121876,7.67741403,2269.1,2268.1,7.75888462]
[1773642124382,0.21957345,2269.4,2268.1,7.75888462]
[1773642124578,7.67741403,2269.3,2268.1,7.75888462]
[1773642125584,7.67741403,2269.3,2268.3,7.75888462]
[1773642128183,7.68262328,2269.5,2268.3,7.75888462]
[1773642128387,7.68262328,2269.5,2268.4,5.1089451]
[1773642128580,0.00520925,2269.5,2268.5,7.75888462]
[1773642128787,0.00520925,2269.5,2268.7,7.75888462]
[1773642128989,12.83923309,2269.9,2268.7,7.75888462]
[1773642129189,7.67741403,2269.9,2268.7,7.75888462]
[1773642130089,7.68174877,2269.9,2268.7,7.75888462]
[1773642130491,7.68174877,2269.9,2268.6,0.22038]
[1773642130492,0.00433474,2269.9,2268.9,7.75888462]
[1773642130685,0.00433474,2269.9,2269.0,7.75888462]
[1773642130880,0.00433474,2269.9,2269.1,7.75888462]
[1773642131190,0.00433474,2269.9,2269.2,7.75888462]
[1773642132190,7.67741403,2270.2,2269.2,7.75888462]
[1773642132191,7.67741403,2270.7,2269.2,7.75888462]
[1773642132386,7.67741403,2270.5,2269.2,7.75888462]
[1773642133290,7.68170814,2270.5,2269.2,7.75888462]
[1773642140305,5.13202065,2270.4,2268.9,7.75888462]
[1773642140506,7.67741403,2270.3,2268.9,7.75888462]
[1773642140909,7.67741403,2270.1,2268.9,7.75888462]
[1773642141613,7.67741403,2269.9,2268.9,7.75888462]
[1773642142402,7.41309923,2270.3,2268.9,7.75888462]
[1773642142607,7.41309923,2270.1,2268.9,7.75888462]
[1773642143209,8.38399975,2270.1,2268.9,7.75888462]
[1773642144715,7.41309923,2270.1,2269.4,7.49936508]
[1773642144915,7.41309923,2270.1,2269.4,7.50491177]
[1773642148419,7.41309923,2270.1,2269.4,7.47181177]
[1773642149820,7.41309923,2270.1,2269.4,0.00554669]
[1773642150021,7.41309923,2270.1,2269.3,7.49936508]
[1773642150022,7.41309923,2269.9,2269.3,7.49936508]
[1773642150617,7.41309923,2269.9,2268.9,7.49936508]
[1773642150917,7.41309923,2270.4,2268.9,7.50289657]
[1773642151124,5.14834734,2270.3,2269.1,7.49936508]
[1773642151324,8.38399975,2270.4,2269.1,7.49936508]
[1773642152218,7.41309923,2270.2,2269.1,7.49936508]
[1773642154124,7.41309923,2270.0,2269.1,7.49936508]
[1773642154324,7.41309923,2270.2,2269.1,7.49936508]
[1773642154821,7.41309923,2269.9,2269.1,7.49936508]
[1773642155924,7.41309923,2270.2,2269.1,8.4702656]
[1773642157015,0.00429411,2270.5,2269.9,7.49936508]
[1773642157220,7.41309923,2271.2,2270.2,7.49936508]
[1773642158325,7.70760327,2271.2,2270.2,7.49936508]
[1773642160324,7.93279208,2271.2,2270.2,7.49936508]
[1773642160828,5.15464746,2271.1,2270.2,7.49936508]
[1773642161027,7.41309923,2271.0,2269.7,7.49936508]
[1773642167233,5.14914512,2270.9,2269.7,7.49936508]
[1773642167531,7.41309923,2270.8,2269.7,7.49936508]
[1773642170030,0.22015,2271.1,2269.7,7.49936508]
[1773642170031,7.41309923,2271.1,2269.7,7.49936508]
[1773642170334,7.41309923,2271.1,2269.9,7.49936508]
[1773642172926,5.14890574,2271.0,2269.9,7.49936508]
[1773642173129,7.14449928,2270.9,2269.9,7.49936508]
[1773642173630,3.69041173,2271.3,2269.9,7.49936508]
[1773642173933,7.14449928,2271.6,2270.5,7.5513315]
[1773642174335,18.28149928,2271.6,2270.5,7.5513315]
[1773642174836,18.28551383,2271.6,2270.5,7.55496749]
[1773642175233,0.00401455,2271.6,2270.5,7.55496749]
[1773642175834,7.52270877,2271.6,2270.5,7.55496749]
[1773642177139,7.49265062,2271.6,2270.7,7.38429145]
[1773642177838,7.54880025,2271.5,2270.7,7.38429145]
[1773642178832,0.00401455,2271.6,2270.7,7.38429145]
[1773642179027,7.56734681,2271.6,2270.7,7.38429145]
[1773642179834,0.00401455,2271.6,2270.7,7.38429145]
[1773642180630,7.42213459,2271.6,2270.7,7.38429145]
[1773642180842,7.42213459,2271.6,2270.5,7.38792744]
[1773642182040,7.50604637,2271.4,2270.5,0.00363599]
[1773642182234,7.50604637,2271.2,2270.5,7.38792744]
[1773642183233,7.50604637,2271.2,2270.3,6.20187315]
[1773642183539,11.084,2271.3,2269.4,1.57140806]
[1773642183540,7.56333226,2271.0,2269.5,4.63051642]
[1773642183736,7.56333226,2271.0,2269.6,7.38429145]
[1773642183936,7.78348226,2271.0,2269.6,7.38429145]
[1773642184136,7.78350226,2270.8,2269.6,7.38429145]
[1773642184337,7.56333226,2270.6,2269.6,7.38870721]
[1773642184537,7.56333226,2270.7,2269.6,7.38870721]
[1773642184739,7.56333226,2270.5,2269.6,7.38870721]
[1773642186538,7.56333226,2270.3,2269.6,7.38870721]
[1773642194549,7.56333226,2270.0,2268.9,7.38429145]
[1773642195547,7.56333226,2269.8,2268.9,7.38771938]
[1773642202758,9.13546617,2269.8,2268.9,7.38771938]
[1773642202953,0.22028,2269.7,2268.9,7.38771938]
[1773642203157,7.28674183,2269.6,2268.9,0.00342793]
[1773642203353,7.28674183,2269.6,2268.9,7.38759289]
[1773642203756,18.42174183,2269.5,2268.9,7.38759289]
[1773642204761,19.39300814,2269.5,2268.9,7.38759289]
[1773642206662,7.28674183,2269.4,2268.9,7.38759289]
[1773642210270,18.43474183,2269.3,2268.9,7.38759289]
[1773642210471,7.28674183,2269.2,2268.8,7.38416496]
[1773642210672,7.28674183,2269.2,2268.8,7.08498983]
[1773642211474,7.28674183,2269.2,2268.8,7.09030325]
[1773642211669,7.28674183,2269.4,2268.8,7.09030325]
[1773642211870,11.152,2269.5,2268.8,7.09030325]
[1773642213575,18.43874183,2269.5,2268.8,7.09030325]
[1773642215172,7.28674183,2269.8,2268.8,7.09030325]
[1773642215476,18.44774183,2269.7,2268.8,7.09030325]
[1773642215674,7.28674183,2269.6,2268.8,7.09030325]
[1773642216173,7.28674183,2269.6,2268.4,7.38416496]
[1773642216378,11.161,2269.7,2268.4,7.38416496]
[1773642216379,7.28674183,2269.2,2268.4,7.38416496]
[1773642216570,7.28674183,2269.0,2268.4,7.38416496]
[1773642217374,11.164,2269.1,2268.4,7.3890288]
[1773642218874,7.28674183,2269.0,2268.4,7.3890288]
[1773642220078,7.28674183,2269.5,2268.4,7.3890288]
[1773642220281,7.28674183,2269.3,2268.4,7.3890288]
[1773642222284,7.28674183,2269.3,2268.4,0.00486384]
[1773642222576,7.28674183,2269.1,2268.4,0.00486384]
[1773642224486,7.28674183,2268.9,2268.4,0.00486384]
[1773642224680,7.28674183,2268.7,2268.4,0.00486384]
[1773642225284,18.46374183,2268.7,2268.4,0.00486384]
[1773642225585,7.28674183,2268.6,2268.1,7.38416496]
[1773642226580,7.28674183,2268.6,2268.1,7.38844103]
[1773642227580,1.57354917,2269.3,2268.1,7.38844103]
[1773642227785,7.28674183,2269.1,2268.1,7.38844103]
[1773642233393,6.84359559,2269.2,2268.1,7.38844103]
[1773642234787,6.84359559,2269.2,2268.5,6.77568044]
[1773642239889,7.81498106,2269.2,2268.2,0.97138547]
[1773642240192,7.81498106,2269.2,2268.3,7.4073047]
[1773642240390,6.70516647,2268.9,2268.3,7.4073047]
[1773642240596,6.70516647,2268.9,2268.1,7.41158077]
[1773642240989,6.70516647,2268.9,2268.4,7.4073047]
[1773642241188,6.70516647,2269.2,2268.8,7.4073047]
[1773642241394,7.9076379,2270.0,2268.5,0.97138547]
[1773642241395,6.70516647,2269.8,2269.2,7.4073047]
[1773642242094,12.17966054,2270.0,2269.5,0.97138547]
[1773642242095,6.70944154,2270.0,2269.5,0.97138547]
[1773642242391,6.70516647,2270.2,2269.7,8.37869017]
[1773642243395,6.70957372,2270.2,2269.7,8.38203906]
[1773642243897,6.70957372,2270.2,2269.7,7.41065359]
[1773642250297,6.70957372,2270.2,2269.7,0.00334889]
[1773642251794,6.70957372,2270.2,2268.8,7.4073047]
[1773642252598,6.70516647,2270.0,2268.8,7.4073047]
[1773642252796,6.70516647,2269.8,2268.8,7.41139264]
[1773642254800,6.70516647,2269.8,2268.8,0.00408794]
[1773642256199,6.70516647,2269.6,2268.9,7.4073047]
[1773642260400,6.70516647,2269.6,2268.8,7.4073047]
[1773642261401,6.70516647,2269.6,2268.8,7.41247168]
[1773642263503,6.77862997,2269.4,2268.8,7.41247168]
[1773642268412,6.77862997,2269.3,2268.8,7.41247168]
[1773642272614,6.77862997,2269.1,2268.2,6.72265443]
[1773642273216,6.77862997,2268.9,2268.2,6.72265443]
[1773642273418,6.77862997,2268.9,2268.2,6.72741168]
[1773642275115,1.94269466,2269.5,2268.2,6.72741168]
[1773642275320,6.77862997,2269.3,2268.2,6.72741168]
[1773642282223,5.15655996,2269.2,2268.2,6.72741168]
[1773642282420,6.77862997,2269.1,2268.2,6.72741168]
[1773642284520,7.7499773,2269.1,2268.2,6.72741168]
[1773642284921,6.77862997,2268.7,2268.2,0.00475725]
[1773642285726,6.77862997,2268.6,2268.0,6.72265443]
[1773642286726,6.78339911,2268.6,2268.0,6.72697185]
[1773642294427,6.78339911,2268.6,2268.0,0.00431742]
[1773642295022,6.78339911,2268.6,2267.6,6.71120053]
[1773642296129,6.78339911,2268.6,2267.6,6.71476291]
[1773642296930,6.49676227,2268.3,2267.6,6.71476291]
[1773642297535,0.00476914,2268.6,2268.3,6.57971239]
[1773642297733,6.49676227,2269.0,2268.3,6.57971239]
[1773642298637,17.78976227,2268.9,2268.3,6.57971239]
[1773642299135,6.49676227,2268.8,2268.3,6.57971239]
[1773642299326,6.49676227,2268.8,2267.8,6.57971239]
[1773642300232,6.49676227,2268.4,2267.8,6.57971239]
[1773642300933,0.00394709,2269.0,2268.0,6.57971239]
[1773642301238,6.50070936,2269.0,2268.0,6.57971239]
[1773642304441,0.97134733,2268.8,2268.0,6.57971239]
[1773642304639,6.49676227,2268.7,2268.0,6.57971239]
[1773642304841,6.49676227,2268.4,2267.7,6.57971239]
[1773642308241,7.4681096,2268.4,2267.7,6.57971239]
[1773642308741,6.49676227,2268.3,2267.7,6.28109839]
[1773642309140,7.46920681,2268.2,2267.7,6.28109839]
[1773642310546,6.49676227,2268.3,2267.7,6.28109839]
[1773642315654,17.81376227,2268.5,2267.7,6.28109839]
[1773642316152,6.49676227,2268.4,2267.7,6.28109839]
[1773642317253,11.317,2268.5,2267.9,6.57971239]
[1773642317851,17.81376227,2268.5,2267.9,6.57971239]
[1773642318050,6.49676227,2268.4,2267.9,6.57971239]
[1773642318658,7.46920681,2268.4,2267.9,6.57971239]
[1773642318855,7.46920681,2268.4,2267.7,6.57971239]
[1773642319051,7.46920681,2268.2,2267.7,6.57971239]
[1773642319252,7.46920681,2268.2,2267.6,0.00356238]
[1773642319253,7.46920681,2268.0,2267.6,6.58327477]
[1773642319751,7.46920681,2267.8,2267.1,6.57971239]
[1773642320053,6.49676227,2267.8,2267.1,6.57971239]
[1773642320756,6.49676227,2267.8,2267.1,6.58485204]
[1773642321553,6.49676227,2268.2,2267.6,6.57971239]
[1773642324556,2.49676227,2268.2,2267.6,6.57971239]
[1773642325264,3.46920681,2268.2,2267.6,6.57971239]
[1773642325863,4.42796275,2267.9,2267.2,6.55020983]
[1773642326365,5.40041902,2267.8,2267.2,6.55020983]
[1773642327856,4.42797448,2267.8,2267.2,6.55020983]
[1773642328061,5.40041902,2267.8,2267.2,6.55020983]
[1773642328456,5.40041902,2267.8,2267.2,6.48440983]
[1773642329166,11.342,2267.9,2267.2,6.48440983]
[1773642329366,15.74650552,2267.9,2267.2,6.48440983]
[1773642332166,5.39488656,2267.8,2267.2,6.48440983]
[1773642332969,0.97244454,2267.8,2267.2,6.48440983]
[1773642333171,11.342,2267.9,2267.2,6.48440983]
[1773642333366,15.74999698,2267.9,2267.2,6.48440983]
[1773642333566,11.56434225,2267.9,2267.2,6.48440983]
[1773642333973,15.99051628,2267.9,2267.2,6.48440983]
[1773642334674,11.56434225,2267.9,2267.2,6.48440983]
[1773642335568,15.74406152,2267.9,2267.2,6.48440983]
[1773642335774,11.374,2268.0,2267.6,6.55020983]
[1773642335966,11.375,2268.2,2267.6,6.55020983]
[1773642336164,15.77737054,2268.2,2267.6,6.55020983]
[1773642336672,5.0,2268.3,2268.0,6.55020983]
[1773642336969,1.52475521,2268.3,2268.0,6.55020983]
[1773642337175,4.38552001,2268.6,2268.0,6.55020983]
[1773642338062,17.68839287,2268.7,2268.0,6.55020983]
[1773642338270,17.68839287,2268.7,2268.2,6.55020983]
[1773642340675,11.378,2268.7,2268.2,6.55020983]
[1773642341273,17.87014183,2268.7,2268.2,6.55020983]
[1773642344374,11.378,2268.7,2268.2,6.55020983]
[1773642344576,11.408,2268.8,2268.4,6.55020983]
[1773642344871,18.13926408,2269.3,2268.8,6.55020983]
[1773642345473,6.72626679,2269.2,2268.8,6.55020983]
[1773642346071,6.72955976,2269.2,2268.8,6.55541148]
[1773642350777,0.00329297,2269.2,2269.0,6.55020983]
[1773642351076,18.20946604,2269.6,2269.0,6.55020983]
[1773642351282,11.433,2269.5,2269.0,6.55020983]
[1773642351881,0.00344469,2269.5,2269.2,6.55020983]
[1773642352285,6.90125728,2269.4,2268.9,6.91648749]
[1773642352576,6.89647022,2269.5,2268.9,7.88893203]
[1773642353983,6.89647022,2269.5,2268.9,6.91648749]
[1773642354380,7.86891476,2269.5,2268.9,6.91648749]
[1773642357084,6.89647022,2269.5,2268.9,6.91648749]
[1773642357785,0.00344469,2269.5,2268.9,6.91648749]
[1773642359188,6.94858642,2269.5,2268.9,6.91648749]
[1773642360584,7.91103879,2269.4,2268.6,6.65643502]
[1773642360785,6.93859425,2269.4,2268.8,6.65643502]
[1773642361285,6.94681284,2269.5,2268.8,6.65643502]
[1773642361490,6.94681284,2269.5,2268.8,6.66179591]
[1773642362189,6.94607531,2269.3,2268.8,6.66179591]
[1773642362586,6.94130261,2269.5,2268.8,6.66179591]
[1773642363088,7.95150776,2269.4,2268.8,6.66179591]
[1773642367393,0.00344469,2269.5,2268.6,6.65643502]
[1773642367394,6.9736664,2268.9,2268.6,6.65643502]
[1773642367590,6.9736664,2268.9,2268.2,6.65643502]
[1773642367792,7.9380161,2268.8,2268.2,6.65643502]
[1773642368383,7.9380161,2268.8,2268.2,6.66087799]
[1773642368794,6.96557156,2268.8,2268.2,6.66087799]
[1773642369294,6.95894884,2269.1,2268.2,6.66087799]
[1773642369689,6.95894884,2269.1,2268.0,0.22043]
[1773642369690,7.93073132,2269.1,2268.0,6.65643502]
[1773642370693,7.93073132,2269.1,2268.0,6.66195993]
[1773642371299,7.06193799,2268.7,2268.0,6.66195993]
[1773642371799,7.04511974,2268.5,2268.0,6.66195993]
[1773642371998,7.04511974,2268.5,2268.0,0.00552491]
[1773642372399,7.04511974,2268.5,2268.0,6.66195993]
[1773642372894,7.04511974,2268.5,2267.4,0.22049]
[1773642373095,7.04511974,2268.5,2267.8,6.65643502]
[1773642373692,7.03142017,2268.3,2267.8,6.65643502]
[1773642374200,7.03142017,2268.3,2267.8,6.66062064]
[1773642375304,7.03142017,2268.3,2267.6,6.65643502]
[1773642375504,7.26618374,2268.1,2267.6,6.65643502]
[1773642376304,7.26618374,2268.1,2267.6,6.66129573]
[1773642383818,8.23796622,2268.1,2267.6,0.00486071]
[1773642384418,8.23796622,2268.1,2266.9,7.08872103]
[1773642385312,8.23796622,2268.1,2266.9,7.09284508]
[1773642392124,8.45594626,2268.1,2266.9,7.09284508]
[1773642392328,7.18110087,2267.7,2266.9,7.09284508]
[1773642392517,7.18486803,2267.7,2266.9,7.09284508]
[1773642393623,7.18110087,2267.5,2266.9,7.09284508]
[1773642395027,7.18486803,2267.7,2266.9,7.09284508]
[1773642398936,7.18110087,2267.5,2266.9,7.09284508]
[1773642401939,7.18110087,2267.5,2266.9,0.00412405]
[1773642402134,7.18110087,2267.3,2266.9,0.00412405]
[1773642402336,7.18110087,2267.3,2266.7,7.08872103]
[1773642403039,7.40159087,2267.5,2266.7,7.08872103]
[1773642403237,7.40159087,2267.5,2266.7,7.0931273]
[1773642405336,7.18110087,2267.5,2266.7,7.0931273]
[1773642409535,7.18110087,2267.4,2266.7,7.0931273]
[1773642410638,7.18110087,2267.4,2266.7,0.00440627]
[1773642410839,7.18110087,2267.4,2266.7,7.0931273]
[1773642415433,11.457,2267.5,2266.7,7.0931273]
[1773642416643,6.51489242,2267.5,2266.7,7.0931273]
[1773642427054,5.1734621,2267.4,2265.6,11.53555857]
[1773642427253,5.1734621,2267.4,2265.5,6.93752268]
[1773642427254,0.97178248,2266.4,2265.3,7.09930848]
[1773642427553,3.69155853,2266.8,2265.7,7.09930848]
[1773642427754,12.43720629,2266.9,2265.7,7.09930848]
[1773642427953,4.31362202,2266.8,2265.7,7.09930848]
[1773642428151,4.31362202,2266.8,2265.7,7.10245832]
[1773642430456,4.56100587,2267.0,2265.9,7.09930848]
[1773642430851,4.56100587,2267.0,2266.2,7.09930848]
[1773642431155,4.56100587,2267.0,2266.4,7.09930848]
[1773642433656,4.68340159,2267.4,2266.6,7.09930848]
[1773642436160,4.90394051,2267.4,2266.6,7.09930848]
[1773642436361,0.97327759,2267.1,2266.6,7.09930848]
[1773642436559,5.69189541,2267.3,2266.6,7.09930848]
[1773642438357,0.97327759,2266.7,2265.9,7.09930848]
[1773642438553,0.97327759,2266.4,2265.9,7.09930848]
[1773642440064,0.97327759,2266.8,2265.9,8.07258607]
[1773642440462,0.97327759,2266.6,2265.9,7.09930848]
[1773642442060,5.85359515,2266.6,2265.9,7.09930848]
[1773642442563,0.97327759,2266.6,2265.9,7.09930848]
[1773642445564,3.69155853,2267.2,2266.3,0.97327759]
[1773642445759,6.67291291,2267.1,2266.4,7.63194609]
[1773642446067,0.97327759,2267.1,2266.4,7.63194609]
[1773642446260,0.97327759,2267.3,2266.4,7.63194609]
[1773642446464,5.70123007,2267.2,2266.4,8.60522368]
[1773642446766,4.77855364,2267.4,2266.4,8.60522368]
[1773642446961,0.97327759,2267.1,2266.4,7.63194609]
[1773642453664,0.97327759,2267.3,2266.6,7.63194609]
[1773642453868,5.70379503,2267.2,2266.6,7.63194609]
[1773642454367,10.41242347,2267.2,2266.6,7.63194609]
[1773642454565,4.70862844,2267.2,2266.6,7.63194609]
[1773642454766,4.70841731,2267.0,2265.7,0.22380984]
[1773642455070,0.97327759,2266.9,2266.1,7.63194609]
[1773642455663,4.70841731,2267.2,2266.1,7.63194609]
[1773642455867,0.97327759,2267.0,2266.1,8.60522368]
[1773642456259,0.97327759,2267.2,2266.4,7.63194609]
[1773642456965,0.97327759,2266.8,2266.4,7.63194609]
[1773642457860,0.97327759,2267.1,2266.4,7.63194609]
[1773642459469,0.97327759,2266.9,2266.5,7.63194609]
[1773642464669,0.97327759,2267.0,2266.5,7.63194609]
[1773642467276,0.97327759,2267.2,2266.5,7.63194609]
[1773642468375,0.97327759,2267.0,2266.7,7.63194609]
[1773642468574,0.97327759,2267.1,2266.7,7.63194609]
[1773642469677,3.69155853,2267.5,2266.7,7.63194609]
[1773642469878,6.67752551,2267.4,2266.7,7.63194609]
[1773642470075,0.97327759,2267.4,2266.7,7.63194609]
[1773642470777,8.32539421,2267.4,2266.7,7.63194609]
[1773642471471,0.97327759,2267.2,2266.7,7.63194609]
[1773642472179,8.19278502,2266.8,2266.4,6.92086877]
[1773642472380,0.97327759,2266.5,2266.3,18.09086877]
[1773642472675,0.25634633,2266.5,2266.3,18.09086877]
[1773642473378,0.25634633,2266.5,2266.3,0.15201419]
[1773642473578,0.25634633,2266.5,2266.2,18.09786877]
[1773642474978,0.25634633,2266.5,2266.2,15.90295491]
[1773642475175,0.97327759,2266.3,2266.0,1.57158618]
[1773642475374,0.97327759,2266.3,2266.0,12.73458618]
[1773642475977,0.97327759,2266.3,2266.0,12.71558618]
[1773642476674,0.97327759,2266.3,2266.0,12.72258618]
[1773642477171,0.97327759,2266.3,2266.1,1.92907595]
[1773642477591,9.46926097,2266.5,2266.1,1.92907595]
[1773642480685,9.46926097,2267.1,2266.3,1.82360167]
[1773642481179,0.97327759,2266.9,2266.3,1.82360167]
[1773642481485,0.97327759,2266.7,2266.3,1.82360167]
[1773642481680,9.46926097,2266.9,2266.3,1.82360167]
[1773642482978,9.46926097,2266.9,2266.4,11.139]
[1773642483183,9.46926097,2266.9,2266.4,12.84581479]
[1773642483484,9.46926097,2266.9,2266.5,1.67983554]
[1773642483687,9.46926097,2267.1,2266.5,1.67983554]
[1773642483981,0.44437656,2267.3,2266.5,1.67983554]
[1773642483982,0.97327759,2266.9,2266.5,1.67983554]
[1773642484177,9.46926097,2266.9,2266.5,1.67983554]
[1773642484980,8.49598338,2266.7,2266.4,12.79380838]
[1773642485187,8.49598338,2266.7,2266.4,12.71580838]
[1773642485385,9.46926097,2266.9,2266.5,1.63880838]
[1773642487086,9.46926097,2266.9,2266.4,12.69115597]
[1773642489079,9.46926097,2266.9,2266.4,12.61815597]
[1773642489284,9.46926097,2266.9,2266.2,1.54190734]
[1773642489485,9.46926097,2266.9,2266.3,11.036]
[1773642490185,9.46926097,2266.9,2266.3,1.5176044]
[1773642490587,8.49598338,2266.4,2265.9,1.4916945]
[1773642490787,8.49598338,2266.3,2265.9,1.4916945]
[1773642491285,8.49598338,2266.3,2265.9,12.4896945]
[1773642491481,8.49598338,2266.3,2265.7,0.00314984]
[1773642491790,8.49598338,2266.3,2265.7,12.3921197]
[1773642492490,8.49598338,2266.3,2265.7,1.4591197]
[1773642493484,8.49598338,2266.1,2265.7,0.00314984]
[1773642493690,8.50056262,2266.1,2265.7,0.00314984]
[1773642494287,8.49598338,2265.9,2265.2,1.39416107]
[1773642495187,8.49598338,2265.9,2265.2,1.39808469]
[1773642495583,8.49598338,2265.9,2265.3,10.736]
[1773642496091,8.49598338,2265.9,2265.3,12.25780632]
[1773642496786,0.00457924,2266.1,2265.4,1.49676484]
[1773642497584,0.00457924,2266.1,2265.6,1.47090676]
[1773642497585,8.50056262,2266.1,2265.6,1.47090676]
[1773642497891,0.00457924,2266.1,2265.8,1.58354744]
[1773642498092,8.49598338,2266.6,2265.8,1.58354744]
[1773642498986,8.4995017,2266.6,2265.8,1.58354744]
[1773642500592,8.4995017,2266.6,2265.6,10.785]
[1773642500791,8.4995017,2266.6,2265.5,1.25447809]
[1773642500992,8.4995017,2266.6,2265.6,1.20474822]
[1773642503488,7.96896569,2266.4,2265.6,1.20474822]
[1773642505699,0.00351832,2266.6,2265.3,1.0867542]
[1773642505700,7.96896569,2266.2,2265.3,1.0867542]
[1773642506497,7.96896569,2266.5,2265.4,1.06582532]
[1773642506893,7.97248401,2266.6,2265.7,1.06781755]
[1773642507192,7.97248401,2266.6,2266.0,1.06781755]
[1773642507599,7.96896569,2266.8,2266.0,1.06781755]
[1773642508597,7.96896569,2266.8,2266.1,1.03479875]
[1773642508796,7.97269684,2266.8,2266.1,1.03479875]
[1773642512700,7.97269684,2266.8,2265.7,0.92643935]
[1773642512902,7.97269684,2266.8,2265.9,0.92643935]
[1773642513199,7.97269684,2266.8,2265.7,10.769]
[1773642513499,7.97269684,2266.8,2265.7,11.63956186]
[1773642513799,7.97269684,2266.8,2265.8,0.84053574]
[1773642532015,7.97269684,2266.8,2266.0,0.43029423]
[1773642532216,7.97269684,2266.8,2265.9,15.57040295]
[1773642532417,7.97269684,2266.8,2265.9,10.973]
[1773642532819,7.97269684,2266.8,2265.9,11.38277998]
[1773642533416,7.97269684,2266.8,2266.0,0.41992371]
[1773642536520,7.97269684,2266.8,2266.0,0.24764861]
[1773642538316,7.97269684,2266.8,2266.0,11.29064861]
[1773642538918,7.97269684,2266.8,2266.0,11.043]
[1773642540319,8.94624924,2266.8,2265.6,0.17979189]
[1773642540519,8.94624924,2266.8,2265.6,11.23779189]
[1773642540723,8.94624924,2266.8,2265.7,0.16014802]
[1773642541921,8.94624924,2266.8,2266.1,0.15632968]
[1773642541922,7.97269684,2266.8,2266.1,0.15632968]
[1773642543026,7.97269684,2266.8,2265.9,0.13688264]